bitfinex/quotes_SOLUSD_20250307
["timestamp","ask_amount","ask_price","bid_price","bid_amount"]
[1741363866710,52.29932867,143.77,143.61,18.64964886]
[1741363866910,2.0,143.75,143.63,20.0]
[1741363867106,2.0,143.79,143.63,20.0]
[1741363867554,2.0,143.79,143.64,0.14216157]
[1741363867839,10.94,143.84,143.75,52.29932867]
[1741363867840,2.0,143.82,143.75,52.29932867]
[1741363868044,2.0,143.85,143.77,52.29932867]
[1741363870435,2.0,143.83,143.78,52.29932867]
[1741363870762,2.0,143.69,143.64,52.29932867]
[1741363870925,2.0,143.68,143.64,52.29932867]
[1741363871126,2.0,143.69,143.63,52.29932867]
[1741363871326,2.0,143.67,143.62,52.29932867]
[1741363871560,2.0,143.66,143.62,52.29932867]
[1741363871724,2.0,143.64,143.6,52.29932867]
[1741363871920,2.0,143.62,143.58,52.29932867]
[1741363872128,2.0,143.63,143.6,52.29932867]
[1741363872330,2.0,143.63,143.52,18.0876]
[1741363872534,2.0,143.61,143.52,11.12]
[1741363872756,2.0,143.62,143.53,18.933972]
[1741363872959,2.0,143.6,143.58,52.29932867]
[1741363873130,2.0,143.63,143.59,52.29932867]
[1741363873336,2.0,143.63,143.6,18.64964886]
[1741363873539,2.0,143.63,143.5,70.36742867]
[1741363873540,2.0,143.58,143.5,52.29932867]
[1741363873736,2.0,143.58,143.5,59.26792867]
[1741363874029,2.0,143.58,143.52,10.14446992]
[1741363874231,2.0,143.58,143.56,18.64964886]
[1741363874430,2.0,143.58,143.56,70.94897753]
[1741363874641,2.0,143.58,143.56,18.64964886]
[1741363874960,2.0,143.57,143.54,52.29932867]
[1741363875136,2.0,143.58,143.5,52.29932867]
[1741363875451,2.0,143.53,143.43,52.33232867]
[1741363875756,2.0,143.48,143.43,52.33232867]
[1741363875937,2.0,143.48,143.43,0.033]
[1741363876136,2.0,143.56,143.43,7.0049]
[1741363876345,2.0,143.57,143.53,52.29932867]
[1741363876552,2.0,143.57,143.52,52.29932867]
[1741363876752,2.0,143.57,143.54,18.64964886]
[1741363876952,2.0,143.62,143.57,18.64964886]
[1741363877148,2.0,143.65,143.6,52.29932867]
[1741363877348,2.0,143.65,143.61,52.29932867]
[1741363877543,2.0,143.68,143.65,18.64964886]
[1741363877870,2.0,143.69,143.67,18.64964886]
[1741363878165,2.0,143.74,143.69,18.64964886]
[1741363878369,2.0,143.75,143.71,52.29932867]
[1741363878540,202.95932867,143.78,143.71,52.29932867]
[1741363878541,2.0,143.74,143.71,52.29932867]
[1741363878740,2.0,143.72,143.68,52.29932867]
[1741363878938,2.0,143.75,143.71,70.94897753]
[1741363879146,2.0,143.77,143.73,52.29932867]
[1741363879352,2.0,143.82,143.77,18.64964886]
[1741363879544,2.0,143.83,143.77,18.64964886]
[1741363879758,2.0,143.85,143.81,52.29932867]
[1741363879969,63.31932867,143.88,143.76,18.933972]
[1741363879970,2.0,143.86,143.76,18.933972]
[1741363880146,2.0,143.86,143.81,52.29932867]
[1741363880351,2.0,143.87,143.83,52.29932867]
[1741363880549,20.0,143.88,143.83,52.29932867]
[1741363880870,2.0,143.89,143.83,18.64964886]
[1741363881168,2.0,143.93,143.85,0.28432314]
[1741363881371,2.0,143.89,143.88,52.29932867]
[1741363881582,2.0,143.89,143.81,0.28432314]
[1741363881876,2.0,143.8,143.79,18.64964886]
[1741363882170,2.0,143.82,143.8,18.64964886]
[1741363882371,2.0,143.79,143.75,18.79181043]
[1741363882542,2.0,143.83,143.78,70.94897753]
[1741363882745,2.0,143.81,143.78,382.94897753]
[1741363883068,1.30377393,143.89,143.78,312.0]
[1741363883069,2.0,143.79,143.78,312.0]
[1741363883269,2.0,143.78,143.75,52.29932867]
[1741363883578,3.4749,143.89,143.71,52.29932867]
[1741363883579,2.0,143.82,143.78,18.64964886]
[1741363883755,2.0,143.82,143.8,18.64964886]
[1741363884070,60.98462867,143.92,143.8,18.64964886]
[1741363884071,0.03,143.87,143.82,0.28432314]
[1741363884246,0.03,143.87,143.86,70.94897753]
[1741363884449,2.0,143.92,143.86,70.94897753]
[1741363884653,10.96,143.96,143.82,0.28432314]
[1741363884654,52.29932867,143.93,143.82,0.28432314]
[1741363884852,52.29932867,143.95,143.88,70.94897753]
[1741363885187,0.03,143.98,143.94,52.29932867]
[1741363885479,0.03,143.98,143.95,70.94897753]
[1741363885788,0.03,143.98,143.97,70.94897753]
[1741363885980,0.03,144.05,143.98,18.64964886]
[1741363886287,0.03,144.05,144.0,52.29932867]
[1741363886658,0.03,144.05,144.01,18.64964886]
[1741363886974,0.03,144.05,144.0,52.29932867]
[1741363886975,0.03,144.05,144.04,70.94897753]
[1741363887376,0.03,144.05,144.04,330.64964886]
[1741363887572,0.03,144.05,144.01,52.29932867]
[1741363887885,0.03,144.05,144.02,53.25469281]
[1741363888066,0.03,144.05,144.04,71.23330067]
[1741363888256,0.03,144.05,144.04,70.94897753]
[1741363888572,0.03,144.05,144.01,86.74075016]
[1741363888761,52.32932867,144.05,144.01,34.44142149]
[1741363888961,0.03,144.05,143.89,34.48644025]
[1741363889147,0.03,144.05,144.02,39.15649552]
[1741363889148,31.12,144.05,144.02,39.15649552]
[1741363889353,52.29932867,144.03,144.02,39.15649552]
[1741363889862,52.29932867,144.03,144.02,4.55145157]
[1741363890080,52.29932867,144.03,143.95,61.83946096]
[1741363890267,1.8396984,144.05,143.95,61.83946096]
[1741363890579,12.1435,144.11,144.01,52.29932867]
[1741363890880,52.29932867,144.07,144.01,52.29932867]
[1741363891082,20.0,144.08,144.02,52.29932867]
[1741363891083,52.29932867,144.08,144.02,52.29932867]
[1741363891379,159.2523,144.14,144.01,18.64964886]
[1741363891380,52.29932867,144.06,144.01,18.64964886]
[1741363891580,52.29932867,144.05,144.0,18.64964886]
[1741363891758,20.0,144.09,144.0,70.94897753]
[1741363891956,52.29932867,144.07,144.02,2.0]
[1741363892157,2.7756,144.11,144.02,2.0]
[1741363892158,52.29932867,144.08,144.02,2.0]
[1741363892372,52.29932867,144.11,144.06,2.0]
[1741363892562,52.29932867,144.13,144.07,54.29932867]
[1741363892889,2.7741,144.19,144.11,52.29932867]
[1741363893064,2.7741,144.19,144.05,2.0]
[1741363893269,2.7741,144.19,144.04,18.64964886]
[1741363893270,52.29932867,144.12,144.06,52.29932867]
[1741363893473,52.29932867,144.15,144.08,52.29932867]
[1741363893678,52.29932867,144.14,144.08,52.29932867]
[1741363893885,0.03,144.21,144.11,2.0]
[1741363894090,0.03,144.21,144.15,2.0]
[1741363894261,0.03,144.21,144.17,54.29932867]
[1741363894460,0.03,144.21,144.19,54.29932867]
[1741363894659,0.03,144.21,144.2,54.29932867]
[1741363894862,0.03,144.21,144.2,72.94897753]
[1741363895118,0.03,144.21,144.18,11.06]
[1741363895385,0.03,144.21,144.2,18.64964886]
[1741363895587,0.03,144.21,144.2,125.53262934]
[1741363895788,0.03,144.21,144.2,132.46742934]
[1741363895959,0.03,144.21,144.2,132.1831062]
[1741363896288,0.03,144.21,144.2,125.53262934]
[1741363896861,0.03,144.21,144.2,52.29932867]
[1741363897058,0.03,144.21,144.2,70.94897753]
[1741363897258,0.03,144.21,144.2,385.23330067]
[1741363897453,0.03,144.25,144.24,20.64964886]
[1741363897662,0.03,144.25,144.24,20.933972]
[1741363897882,0.03,144.34,144.3,2.0]
[1741363898088,0.03,144.34,144.33,73.23330067]
[1741363898465,1.9145247,144.43,144.39,72.94897753]
[1741363898791,1.9145247,144.43,144.39,73.23330067]
[1741363898992,1.9145247,144.43,144.39,125.53262934]
[1741363899168,1.9145247,144.43,144.42,2.0]
[1741363899499,2.47e-05,144.43,144.42,74.27127976]
[1741363899656,0.03,144.49,144.48,20.64964886]
[1741363899856,0.03,144.49,144.48,38.835272]
[1741363900099,0.03,144.54,144.53,2.0]
[1741363900289,0.03,144.54,144.53,20.933972]
[1741363900591,0.03,144.54,144.53,125.53262934]
[1741363900758,52.29932867,144.67,144.53,125.53262934]
[1741363900759,52.29932867,144.68,144.6,20.64964886]
[1741363900959,0.03,144.69,144.63,70.94897753]
[1741363901361,0.03,144.69,144.64,2.0]
[1741363901567,0.03,144.69,144.68,70.94897753]
[1741363901777,0.03,144.69,144.68,31.973972]
[1741363901991,1.9145247,144.72,144.71,22.0]
[1741363902195,1.9145247,144.72,144.71,72.94897753]
[1741363902373,1.9145247,144.72,144.71,74.58365181]
[1741363902698,2.761,144.87,144.72,2.0]
[1741363902895,9.6637,144.87,144.75,18.64964886]
[1741363903060,52.29932867,144.82,144.75,18.64964886]
[1741363903261,52.29932867,144.84,144.78,52.29932867]
[1741363903567,9.6637,144.87,144.76,18.64964886]
[1741363903780,6.4909,144.9,144.8,20.64964886]
[1741363903985,2.7597,144.94,144.85,2.0]
[1741363904289,0.7871004,144.9,144.89,20.933972]
[1741363904874,0.7871004,144.9,144.88,18.933972]
[1741363905077,52.29932867,145.0,144.9,18.933972]
[1741363905293,1.8707969,145.02,144.96,54.29932867]
[1741363905496,1.8707969,145.02,144.98,18.933972]
[1741363905679,1.8707969,145.02,145.01,2.0]
[1741363905876,1.8707969,145.02,145.01,20.933972]
[1741363906284,2.7555,145.17,145.02,18.933972]
[1741363906492,149.96,145.25,145.11,2.0]
[1741363906493,7.18916103,145.18,145.11,2.0]
[1741363906688,2.7552,145.18,145.1,0.28432314]
[1741363906874,52.29932867,145.14,145.1,2.0]
[1741363907071,202.25932867,145.25,145.11,73.23330067]
[1741363907072,52.29932867,145.17,145.11,73.23330067]
[1741363907281,9.6391,145.24,145.15,2.0]
[1741363907495,2.754,145.24,145.16,54.29932867]
[1741363907690,2.754,145.24,145.18,2.0]
[1741363907975,2.754,145.24,145.16,20.933972]
[1741363908281,8.5985,145.26,145.18,18.933972]
[1741363908490,2.7529,145.3,145.17,2.0]
[1741363908793,52.29932867,145.23,145.18,20.933972]
[1741363908986,52.29932867,145.25,145.2,2.0]
[1741363909295,9.6352,145.3,145.2,2.0]
[1741363909296,52.29932867,145.24,145.2,0.28432314]
[1741363909473,23.3998,145.3,145.19,0.28432314]
[1741363909692,52.29932867,145.24,145.2,2.0]
[1741363909886,52.29932867,145.25,145.2,2.0]
[1741363910197,52.29932867,145.25,145.21,18.64964886]
[1741363910500,9.6358,145.29,145.22,2.28432314]
[1741363910501,52.29932867,145.27,145.22,2.28432314]
[1741363910680,1.8707969,145.31,145.28,2.0]
[1741363910874,56.92282557,145.31,145.27,2.0]
[1741363911080,4.6234969,145.31,145.19,12.98]
[1741363911287,52.29932867,145.3,145.26,2.0]
[1741363911476,1.8707969,145.31,145.3,20.64964886]
[1741363911793,149.58,145.41,145.31,0.14216157]
[1741363911794,52.29932867,145.41,145.31,0.14216157]
[1741363911975,11.0,145.45,145.39,2.0]
[1741363911976,2.75,145.45,145.39,2.0]
[1741363912176,2.75,145.45,145.37,18.64964886]
[1741363912177,2.75,145.45,145.38,18.933972]
[1741363912393,2.75,145.45,145.4,18.64964886]
[1741363912696,2.7496,145.48,145.42,2.0]
[1741363913005,6.661,145.53,145.43,20.64964886]
[1741363913006,2.7493,145.5,145.43,20.64964886]
[1741363913182,51.77586595,145.46,145.41,2.28432314]
[1741363913384,51.77586595,145.45,145.38,53.77586595]
[1741363913684,51.77586595,145.42,145.39,2.28432314]
[1741363913888,51.77586595,145.42,145.3,149.38]
[1741363913889,51.77586595,145.4,145.33,2.0]
[1741363914089,6.8757,145.44,145.34,20.64964886]
[1741363914283,51.77586595,145.4,145.38,2.0]
[1741363914599,51.77586595,145.39,145.3,18.64964886]
[1741363914803,51.77586595,145.31,145.24,2.0]
[1741363915019,51.77586595,145.26,145.22,2.0]
[1741363915183,51.77586595,145.26,145.17,10.98]
[1741363915184,20.0,145.26,145.17,2.0]
[1741363915377,51.77586595,145.21,145.15,53.77586595]
[1741363915586,51.77586595,145.22,145.17,2.0]
[1741363915795,51.77586595,145.2,145.13,53.77586595]
[1741363915993,51.77586595,145.25,145.12,2.0]
[1741363915994,51.77586595,145.17,145.12,2.0]
[1741363916199,51.77586595,145.17,145.11,2.0]
[1741363916386,51.77586595,145.16,145.1,53.77586595]
[1741363916591,51.77586595,145.14,145.09,2.0]
[1741363916905,51.77586595,145.12,145.1,2.0]
[1741363917293,51.77586595,145.11,145.04,2.0]
[1741363917495,20.0,145.15,145.1,2.0]
[1741363917689,51.77586595,145.15,145.1,2.0]
[1741363917884,51.77586595,145.15,145.11,2.0]
[1741363918089,2.7559,145.14,145.11,18.64964886]
[1741363918399,51.77586595,145.12,145.07,20.64964886]
[1741363918600,20.0,145.1,145.03,2.0]
[1741363919111,2.7559,145.14,145.09,2.0]
[1741363919296,2.7559,145.14,145.06,18.64964886]
[1741363919297,29.6457,145.14,145.06,18.64964886]
[1741363919691,29.6457,145.14,145.03,2.0]
[1741363920001,9.6457,145.14,145.1,2.0]
[1741363920206,2.7559,145.14,145.09,55.64213164]
[1741363920514,9.6457,145.14,145.02,0.033]
[1741363920806,160.14,145.13,145.07,2.0]
[1741363921109,20.0,145.1,145.02,0.033]
[1741363921292,20.0,145.08,145.02,0.033]
[1741363921495,53.3578085,145.03,145.02,0.033]
[1741363921708,20.0,145.08,145.02,0.033]
[1741363921709,53.3578085,145.05,145.02,0.033]
[1741363922009,20.0,145.0,144.94,55.3578085]
[1741363922189,20.0,145.0,144.9,2.0]
[1741363922391,53.3578085,144.94,144.88,2.0]
[1741363922712,20.0,144.98,144.87,2.033]
[1741363922927,20.0,144.98,144.9,2.0]
[1741363923213,20.0,144.98,144.87,0.033]
[1741363923214,20.0,144.98,144.92,2.0]
[1741363923426,20.0,144.98,144.87,0.033]
[1741363923586,53.3578085,144.88,144.87,0.033]
[1741363923786,11.14432314,144.97,144.9,2.0]
[1741363923787,10.86,144.97,144.9,2.0]
[1741363924007,6.8966,145.0,144.93,2.0]
[1741363924193,20.0,144.96,144.87,0.033]
[1741363924397,30.86,144.96,144.87,0.033]
[1741363924604,20.0,144.92,144.87,0.033]
[1741363924817,0.28432314,144.91,144.76,2.0]
[1741363925021,20.0,144.87,144.74,2.0]
[1741363925190,30.88,144.87,144.72,12.88]
[1741363925394,53.3578085,144.77,144.72,2.0]
[1741363925605,53.3578085,144.76,144.72,2.0]
[1741363925915,53.3578085,144.73,144.63,2.0]
[1741363926116,53.3578085,144.65,144.6,2.0]
[1741363926290,53.3578085,144.64,144.59,2.0]
[1741363926493,53.3578085,144.67,144.66,2.0]
[1741363926709,20.0,144.79,144.7,2.0]
[1741363927010,20.0,144.79,144.71,2.0]
[1741363927316,20.0,144.79,144.72,2.0]
[1741363927487,20.0,144.79,144.74,2.0]
[1741363927689,20.0,144.79,144.63,20.0]
[1741363927690,149.3,144.82,144.76,2.0]
[1741363927927,53.3578085,144.77,144.72,2.0]
[1741363928215,20.0,144.77,144.67,18.64964886]
[1741363928524,20.0,144.72,144.6,2.0]
[1741363928708,20.0,144.68,144.58,3.8707969]
[1741363928920,20.0,144.68,144.58,1.8707969]
[1741363929100,20.0,144.66,144.58,1.8707969]
[1741363929294,18.933972,144.65,144.58,1.8707969]
[1741363929636,20.0,144.61,144.58,1.8707969]
[1741363929793,53.3578085,144.59,144.58,1.8707969]
[1741363930497,149.4,144.6,144.58,1.8707969]
[1741363930727,53.3578085,144.59,144.58,1.8707969]
[1741363931098,53.64213164,144.59,144.58,1.8707969]
[1741363931300,20.0,144.56,144.45,2.0]
[1741363931499,53.3578085,144.51,144.48,2.0]
[1741363931702,149.4,144.6,144.43,2.0]
[1741363931703,20.0,144.52,144.43,2.0]
[1741363931923,20.0,144.5,144.37,2.0]
[1741363932113,20.0,144.46,144.39,2.0]
[1741363932420,20.0,144.46,144.4,2.0]
[1741363932619,20.0,144.46,144.38,2.0]
[1741363932811,53.3578085,144.4,144.37,2.0]
[1741363933008,20.0,144.46,144.43,0.033]
[1741363933822,53.64213164,144.44,144.43,0.033]
[1741363934022,0.28432314,144.4,144.28,1.8707969]
[1741363934201,53.3578085,144.31,144.28,3.8707969]
[1741363934520,20.0,144.35,144.28,1.8707969]
[1741363935025,20.0,144.35,144.29,2.0]
[1741363935228,20.0,144.35,144.32,2.0]
[1741363935399,20.0,144.35,144.28,1.8707969]
[1741363935601,53.3578085,144.29,144.28,1.8707969]
[1741363935896,20.0,144.35,144.28,1.8707969]
[1741363935897,20.0,144.35,144.29,2.0]
[1741363936214,149.66,144.38,144.3,2.0]
[1741363936424,20.0,144.35,144.28,1.8707969]
[1741363936909,20.0,144.35,144.3,2.0]
[1741363937106,53.3578085,144.36,144.34,2.0]
[1741363937415,20.0,144.32,144.28,3.8707969]
[1741363937619,53.3578085,144.29,144.28,1.8707969]
[1741363937813,53.3578085,144.32,144.28,1.8707969]
[1741363938019,149.66,144.38,144.35,2.0]
[1741363938419,10.84,144.45,144.37,2.0]
[1741363938616,18.64964886,144.44,144.28,1.8707969]
[1741363938818,0.28432314,144.42,144.31,2.0]
[1741363939020,53.3578085,144.34,144.32,2.0]
[1741363939224,53.3578085,144.38,144.35,2.0]
[1741363939520,53.3578085,144.4,144.38,2.0]
[1741363939830,53.3578085,144.41,144.4,2.0]
[1741363940032,22.7695,144.43,144.32,20.64964886]
[1741363940219,53.3578085,144.33,144.31,2.0]
[1741363940530,0.28432314,144.41,144.29,2.0]
[1741363940734,52.57496215,144.31,144.28,3.8707969]
[1741363941031,10.86,144.44,144.3,2.0]
[1741363941235,10.86,144.44,144.28,8.8015969]
[1741363941236,52.57496215,144.37,144.35,2.0]
[1741363941419,10.86,144.44,144.31,2.0]
[1741363941740,18.933972,144.43,144.28,1.8707969]
[1741363941917,0.28432314,144.36,144.28,1.8707969]
[1741363942119,20.0,144.32,144.29,2.0]
[1741363942437,202.43496215,144.35,144.33,2.0]
[1741363942733,63.45496215,144.48,144.37,2.0]
[1741363942948,52.57496215,144.38,144.35,2.0]
[1741363943114,63.45496215,144.48,144.38,2.0]
[1741363943115,52.57496215,144.4,144.38,2.0]
[1741363943443,20.0,144.44,144.32,2.0]
[1741363943616,18.64964886,144.47,144.33,2.0]
[1741363944036,20.0,144.45,144.37,2.0]
[1741363944250,2.769,144.46,144.37,2.0]
[1741363944414,52.57496215,144.39,144.38,2.0]
[1741363944617,52.57496215,144.42,144.41,2.0]
[1741363944814,52.57496215,144.42,144.39,2.0]
[1741363945030,52.57496215,144.4,144.34,314.0]
[1741363945337,20.0,144.45,144.39,2.0]
[1741363945525,20.0,144.45,144.36,2.0]
[1741363945730,52.57496215,144.38,144.35,2.0]
[1741363945927,52.57496215,144.38,144.34,6.928]
[1741363945928,52.57496215,144.36,144.3,2.0]
[1741363946242,52.57496215,144.31,144.24,2.0]
[1741363946456,52.57496215,144.29,144.22,20.832232]
[1741363946614,20.0,144.26,144.2,2.0]
[1741363946813,20.0,144.26,144.17,2.0]
[1741363947031,20.0,144.26,144.13,8.9711]
[1741363947032,20.0,144.24,144.13,8.9711]
[1741363947241,52.57496215,144.15,144.13,0.033]
[1741363948644,52.57496215,144.14,144.13,0.033]
[1741363948823,105.1499243,144.14,144.13,0.033]
[1741363949328,52.57496215,144.14,144.13,2.033]
[1741363949531,149.94,144.18,144.17,2.0]
[1741363950035,52.57496215,144.18,144.13,0.033]
[1741363950334,52.57496215,144.18,144.15,18.64964886]
[1741363950335,20.0,144.17,144.15,18.64964886]
[1741363950545,52.57496215,144.17,144.16,2.0]
[1741363950718,20.0,144.23,144.17,2.0]
[1741363950916,20.0,144.23,144.13,25.62044886]
[1741363950917,52.57496215,144.22,144.2,2.0]
[1741363951149,2.3134,144.35,144.27,2.0]
[1741363951323,150.04,144.34,144.27,2.0]
[1741363951528,150.04,144.34,144.3,2.0]
[1741363952046,52.57496215,144.31,144.29,2.0]
[1741363952246,150.04,144.34,144.24,2.0]
[1741363952247,52.57496215,144.3,144.24,2.0]
[1741363952446,52.57496215,144.25,144.23,2.0]
[1741363952759,20.0,144.31,144.18,2.0]
[1741363953055,187.4514,144.34,144.24,18.64964886]
[1741363953351,52.57496215,144.28,144.26,20.64964886]
[1741363953541,152.8112,144.34,144.27,2.0]
[1741363953856,152.8112,144.34,144.21,2.0]
[1741363953857,212.31416215,144.34,144.21,2.0]
[1741363954029,212.31416215,144.34,144.08,36.7006]
[1741363954030,52.57496215,144.22,144.2,20.64964886]
[1741363954350,52.57496215,144.21,144.16,20.64964886]
[1741363954552,20.0,144.25,144.16,18.64964886]
[1741363954852,20.0,144.25,144.21,2.0]
[1741363955034,20.0,144.25,144.19,18.64964886]
[1741363955354,105.1499243,144.2,144.13,2.033]
[1741363955545,52.57496215,144.14,144.13,0.033]
[1741363955924,105.1499243,144.14,144.13,0.033]
[1741363956155,107.9249243,144.14,144.13,0.033]
[1741363956351,107.9249243,144.14,144.02,52.57496215]
[1741363956352,20.0,144.11,144.02,2.0]
[1741363956542,52.57496215,144.04,144.02,2.0]
[1741363956847,13.595,144.14,144.08,2.0]
[1741363957056,52.57496215,144.13,144.12,2.0]
[1741363957354,52.57496215,144.15,144.13,2.0]
[1741363957551,9.71,144.18,144.09,2.0]
[1741363957758,2.7743,144.18,144.14,2.0]
[1741363958051,13.6141,144.19,144.11,18.64964886]
[1741363958236,13.6141,144.19,144.07,2.0]
[1741363958237,20.0,144.16,144.07,2.0]
[1741363958438,20.0,144.16,144.1,2.0]
[1741363958648,20.0,144.16,144.12,2.0]
[1741363958848,52.57496215,144.15,144.14,2.0]
[1741363959151,52.57496215,144.15,144.07,2.0]
[1741363959354,20.0,144.16,144.03,2.0]
[1741363959543,20.0,144.16,144.02,2.0]
[1741363959742,0.28432314,144.15,144.02,2.0]
[1741363959930,0.28432314,144.15,144.0,0.033]
[1741363960133,20.0,144.07,144.0,0.033]
[1741363960347,20.0,144.03,144.0,0.033]
[1741363960562,52.57496215,144.02,144.0,2.033]
[1741363960976,52.57496215,144.01,144.0,0.033]
[1741363961266,20.0,144.03,144.0,0.033]
[1741363961469,52.57496215,144.01,144.0,0.033]
[1741363962129,150.16,144.06,144.02,2.0]
[1741363962333,52.57496215,144.05,144.03,18.64964886]
[1741363962533,52.57496215,144.1,144.07,2.0]
[1741363962763,10.76,144.18,144.13,2.0]
[1741363962946,52.57496215,144.16,144.14,2.0]
[1741363963140,150.2,144.19,144.18,2.0]
[1741363963341,202.77496215,144.19,144.14,2.0]
[1741363963647,150.2,144.27,144.2,2.0]
[1741363963849,150.2,144.27,144.24,2.0]
[1741363963850,10.76,144.26,144.24,2.0]
[1741363964044,10.76,144.26,144.2,2.0]
[1741363964241,10.76,144.26,144.23,2.0]
[1741363964452,150.2,144.27,144.21,2.0]
[1741363964660,20.0,144.24,144.19,2.0]
[1741363964960,52.57496215,144.22,144.19,2.0]
[1741363965170,52.57496215,144.2,144.16,314.0]
[1741363965357,52.57496215,144.17,144.13,2.0]
[1741363965559,20.0,144.17,144.1,2.0]
[1741363965762,20.0,144.17,144.15,2.0]
[1741363965969,20.0,144.17,144.09,2.0]
[1741363966162,52.57496215,144.13,144.09,2.0]
[1741363966366,52.57496215,144.1,144.04,2.0]
[1741363966567,52.57496215,144.07,144.05,2.0]
[1741363966876,52.57496215,144.07,144.04,2.0]
[1741363967050,52.57496215,144.06,144.01,2.0]
[1741363967258,52.57496215,144.03,144.0,2.033]
[1741363967453,52.57496215,144.03,144.01,2.0]
[1741363967667,52.57496215,144.02,144.0,0.033]
[1741363967958,52.57496215,144.01,144.0,0.033]
[1741363968951,52.57496215,144.01,143.91,52.89716215]
[1741363968952,118.5874243,144.01,143.91,0.3222]
[1741363969154,105.1499243,143.92,143.91,0.3222]
[1741363970280,52.57496215,143.92,143.91,0.3222]
[1741363970574,20.0,143.89,143.76,6.956]
[1741363970740,20.0,143.89,143.72,9.745993]
[1741363970939,20.0,143.89,143.72,6.9576]
[1741363971237,52.57496215,143.8,143.74,52.57496215]
[1741363971441,52.57496215,143.78,143.72,6.9576]
[1741363971643,52.57496215,143.82,143.75,52.57496215]
[1741363971843,20.0,143.82,143.72,312.0]
[1741363972152,10.72,143.85,143.75,6.9565]
[1741363972345,10.72,143.85,143.76,18.64964886]
[1741363972656,150.24,143.94,143.79,0.28432314]
[1741363972864,280.80705077,144.04,143.79,0.28432314]
[1741363972865,2.7771,144.03,143.85,20.0]
[1741363973063,54.27686509,143.96,143.89,54.27686509]
[1741363973262,3.53182396,144.09,143.89,20.0]
[1741363973471,23.55329446,144.13,143.89,20.0]
[1741363973472,9.714,144.12,143.91,18.933972]
[1741363973775,2.7754,144.12,143.93,18.933972]
[1741363973991,0.03,144.13,143.96,18.933972]
[1741363974161,0.03,144.13,143.97,6.9458]
[1741363974488,0.03,144.13,143.98,0.28432314]
[1741363974657,54.27686509,144.06,143.98,54.56118823]
[1741363974857,54.27686509,144.03,143.96,54.27686509]
[1741363975082,150.38,144.06,143.95,61.22326509]
[1741363975251,150.38,144.06,143.88,18.64964886]
[1741363975453,150.38,144.06,143.88,25.59984886]
[1741363975454,20.0,144.02,143.88,25.59984886]
[1741363975796,20.0,144.02,143.87,6.9506]
[1741363975967,30.9,144.02,143.88,0.28432314]
[1741363976161,30.9,144.02,143.86,10.9]
[1741363976162,20.0,143.98,143.86,10.9]
[1741363976361,54.27686509,143.94,143.87,54.27686509]
[1741363976577,2.7783,143.97,143.86,17.8511]
[1741363976578,54.27686509,143.92,143.86,54.27686509]
[1741363976786,25.59384886,144.01,143.81,1.04237846]
[1741363976787,54.27686509,143.96,143.89,54.27686509]
[1741363977155,30.09067369,143.95,143.89,54.27686509]
[1741363977380,18.64964886,144.05,143.92,54.27686509]
[1741363977595,13.6568,144.05,143.89,0.28432314]
[1741363977765,20.0,144.02,143.83,6.9526]
[1741363977964,20.0,143.94,143.8,6.9541]
[1741363978290,20.0,143.94,143.71,1.04254106]
[1741363978291,2.7791,143.93,143.72,2.0]
[1741363978495,54.27686509,143.85,143.78,54.27686509]